bitfinex-derivatives/quotes_ETHF0:USTF0_20241023
["timestamp","ask_amount","ask_price","bid_price","bid_amount"]
[1729642994356,0.34343,2621.8,2621.7,2.98]
[1729642997256,1.65759,2622.1,2621.5,3.4026]
[1729642997561,0.34345,2621.6,2621.5,3.4026]
[1729642997955,0.34345,2621.6,2621.5,7.217]
[1729643002462,0.34345,2621.6,2621.5,4.237]
[1729643002773,0.34345,2621.6,2621.5,0.4226]
[1729643003267,0.34345,2621.6,2621.5,3.4026]
[1729643003970,3.2078,2621.9,2621.5,3.4026]
[1729643004159,0.34345,2621.6,2621.5,3.4026]
[1729643004759,0.34345,2621.6,2621.5,3.8014]
[1729643005767,0.34345,2621.6,2621.5,0.8214]
[1729643009365,0.34345,2621.6,2621.5,1.16486]
[1729643009565,0.34345,2621.6,2621.5,0.8214]
[1729643010068,4.06636,2621.9,2621.4,3.2078]
[1729643010270,0.34346,2621.5,2621.4,3.2078]
[1729643010462,0.34348,2621.4,2621.3,0.34349]
[1729643010663,0.34348,2621.4,2621.3,2.98]
[1729643012767,0.4121,2621.7,2621.1,0.7873]
[1729643013072,0.3435,2621.2,2621.1,0.7873]
[1729643014175,0.3435,2621.2,2621.1,0.3979]
[1729643014373,0.85867,2621.5,2620.8,3.71645]
[1729643014669,0.85867,2621.5,2620.8,3.763]
[1729643014670,0.34354,2620.9,2620.8,3.763]
[1729643015872,0.34354,2621.0,2620.8,4.10655]
[1729643016068,0.34352,2621.1,2620.9,0.34354]
[1729643016270,0.34352,2621.2,2621.0,0.34353]
[1729643016565,0.85867,2621.5,2620.9,0.34354]
[1729643016566,0.34352,2621.1,2620.9,0.34354]
[1729643017173,1.26077,2621.5,2620.8,3.763]
[1729643017369,0.3435,2621.3,2621.1,0.34351]
[1729643017562,0.4021,2621.5,2621.1,0.34351]
[1729643017769,0.4021,2621.5,2621.0,2.98]
[1729643017969,0.34349,2621.3,2621.2,0.3435]
[1729643018572,0.34349,2621.3,2621.2,0.7399]
[1729643019578,0.34354,2621.0,2620.9,0.34354]
[1729643019766,0.34352,2621.1,2621.0,0.34352]
[1729643020277,0.34352,2621.1,2620.9,0.3964]
[1729643020278,0.34353,2621.0,2620.9,0.73994]
[1729643020776,0.34353,2621.0,2620.9,0.3964]
[1729643022070,0.85875,2621.3,2620.9,0.73993]
[1729643022071,0.34349,2621.3,2620.9,0.73993]
[1729643022270,0.34353,2621.0,2620.9,0.73993]
[1729643022575,0.34353,2621.0,2620.9,0.3964]
[1729643023267,0.34353,2621.0,2620.9,0.73994]
[1729643024962,0.34352,2621.1,2621.0,0.34352]
[1729643025169,0.34352,2621.1,2621.0,0.74372]
[1729643025769,3.2078,2621.4,2620.9,0.3964]
[1729643025770,0.34353,2621.0,2620.9,0.3964]
[1729643025976,0.34353,2621.0,2620.9,0.73994]
[1729643026364,0.34353,2621.0,2620.9,0.3964]
[1729643026569,0.34353,2621.0,2620.9,0.73994]
[1729643027775,0.34352,2621.1,2621.0,0.34353]
[1729643030873,0.34353,2621.0,2620.9,0.73993]
[1729643031873,0.34353,2621.0,2620.7,3.2078]
[1729643031874,0.34356,2620.8,2620.7,3.2078]
[1729643032175,4.5913,2620.9,2620.3,3.2078]
[1729643032372,0.34362,2620.4,2620.3,3.2078]
[1729643032676,0.7761,2620.9,2620.4,0.3436]
[1729643033177,0.3436,2620.5,2620.4,0.3436]
[1729643033373,0.3436,2620.5,2620.3,3.2078]
[1729643033680,0.34361,2620.4,2620.3,3.55142]
[1729643034479,0.34361,2620.5,2620.3,3.55142]
[1729643034677,0.7761,2620.9,2620.3,3.2078]
[1729643034874,0.7761,2620.9,2620.4,0.34361]
[1729643035176,0.34359,2620.6,2620.4,0.34361]
[1729643035572,0.7761,2620.9,2620.4,0.34361]
[1729643035776,0.3436,2620.5,2620.3,3.2078]
[1729643036078,0.3436,2620.5,2620.3,3.55141]
[1729643036681,1.63498,2620.9,2620.3,0.34361]
[1729643036979,0.34361,2620.5,2620.3,3.55141]
[1729643037181,0.34361,2620.5,2620.3,3.2078]
[1729643037380,0.34361,2620.5,2620.3,3.55141]
[1729643038270,0.34361,2620.5,2620.3,3.2078]
[1729643038674,0.34361,2620.5,2620.3,3.55142]
[1729643039082,0.34359,2620.6,2620.4,0.3436]
[1729643039280,0.34361,2620.4,2620.3,3.2078]
[1729643039582,0.34361,2620.4,2620.3,3.95972]
[1729643040282,0.8589,2620.8,2620.3,3.95972]
[1729643040283,0.34361,2620.5,2620.3,3.95972]
[1729643040475,0.34361,2620.5,2620.3,4.36962]
[1729643040783,0.34361,2620.4,2620.3,4.36962]
[1729643040974,1.63498,2620.9,2620.4,0.3436]
[1729643041380,0.34356,2620.8,2620.4,0.3436]
[1729643041581,0.3436,2620.5,2620.4,0.3436]
[1729643042589,1.63498,2620.9,2620.3,4.026]
[1729643042785,0.34359,2620.6,2620.4,0.3436]
[1729643043676,1.63498,2620.9,2620.3,4.026]
[1729643043677,0.3436,2620.5,2620.3,4.026]
[1729643043890,1.63498,2620.9,2620.3,4.36961]
[1729643044080,1.63498,2620.9,2620.3,4.026]
[1729643044081,0.34361,2620.4,2620.3,4.026]
[1729643044275,0.8589,2620.8,2620.3,4.36962]
[1729643044481,0.3436,2620.5,2620.3,4.36962]
[1729643044789,0.34361,2620.4,2620.3,4.36962]
[1729643044979,1.63498,2620.9,2620.3,4.36962]
[1729643045179,1.63498,2620.9,2620.3,4.026]
[1729643045480,0.3436,2620.5,2620.4,0.34361]
[1729643046585,1.63498,2620.9,2620.3,4.026]
[1729643046785,0.34361,2620.4,2620.3,4.36962]
[1729643047083,0.34361,2620.4,2620.3,3.2078]
[1729643049387,4.15961,2620.4,2620.3,3.2078]
[1729643049588,0.34365,2620.1,2620.0,4.0153]
[1729643052091,0.34365,2620.1,2620.0,4.35896]
[1729643052389,0.34365,2620.1,2620.0,4.0153]
[1729643052583,0.34365,2620.1,2620.0,4.35896]
[1729643052781,0.34365,2620.1,2620.0,4.0153]
[1729643053275,0.34365,2620.1,2620.0,4.35896]
[1729643054281,0.34365,2620.1,2620.0,5.73896]
[1729643055978,0.34365,2620.1,2620.0,5.3953]
[1729643057386,0.34365,2620.1,2620.0,5.73896]
[1729643058187,0.34365,2620.1,2620.0,5.3953]
[1729643058686,1.72365,2620.1,2620.0,3.2078]
[1729643059193,5.54045,2620.1,2620.0,3.2078]
[1729643060591,0.34369,2619.8,2619.7,1.7237]
[1729643060791,0.34369,2619.8,2619.7,4.9315]
[1729643062321,1.38,2619.9,2619.7,4.5878]
[1729643062604,0.34367,2620.0,2619.9,0.34367]
[1729643062792,0.34367,2620.0,2619.9,1.72367]
[1729643063099,0.34367,2620.0,2619.9,1.38]
[1729643063291,0.34367,2620.0,2619.9,1.72367]
[1729643063489,0.34367,2620.0,2619.9,1.38]
[1729643063691,0.34367,2620.0,2619.9,1.72367]
[1729643064296,0.34367,2620.0,2619.9,1.38]
[1729643066301,0.34367,2620.0,2619.9,1.72367]
[1729643068495,4.06685,2620.4,2619.9,1.38]
[1729643068694,0.34362,2620.3,2620.2,1.38]
[1729643068894,0.34362,2620.3,2620.2,1.7882]
[1729643075705,0.34365,2620.1,2620.0,0.4195]
[1729643075906,1.72365,2620.1,2620.0,0.4195]
[1729643077411,0.34365,2620.1,2620.0,0.4195]
[1729643078805,0.34365,2620.1,2620.0,1.7995]
[1729643080112,0.34365,2620.1,2620.0,0.4195]
[1729643080410,0.34365,2620.1,2619.4,3.2078]
[1729643080411,0.34373,2619.5,2619.4,3.2078]
[1729643080613,1.72373,2619.5,2619.4,3.2078]
[1729643080814,5.54133,2619.5,2619.4,3.2078]
[1729643081008,0.34374,2619.4,2619.3,0.4076]
[1729643081312,0.34377,2619.2,2619.1,3.2078]
[1729643081511,0.34377,2619.2,2619.1,3.6154]
[1729643081706,0.34377,2619.2,2619.1,4.0328]
[1729643082610,0.34377,2619.2,2619.1,0.825]
[1729643088923,6.7984,2619.2,2618.6,3.2078]
[1729643089118,0.34386,2618.5,2618.4,0.8094]
[1729643089442,3.32386,2618.5,2618.4,0.8094]
[1729643089718,0.34391,2618.1,2618.0,0.3978]
[1729643090826,0.34388,2618.4,2618.1,0.3439]
[1729643091017,0.34388,2618.4,2618.1,0.7509]
[1729643091421,0.34389,2618.3,2618.1,0.7509]
[1729643092634,0.34389,2618.3,2618.1,0.407]
[1729643092823,0.972,2618.7,2618.2,0.389]
[1729643093027,0.34388,2618.4,2618.2,0.73289]
[1729643093420,4.1808,2618.9,2618.2,0.389]
[1729643093629,0.34388,2618.4,2618.2,0.389]
[1729643094631,4.1808,2618.9,2618.3,0.34388]
[1729643094824,0.34386,2618.5,2618.3,0.34388]
[1729643095024,0.34386,2618.5,2618.2,0.73289]
[1729643095227,0.34386,2618.5,2618.3,0.34388]
[1729643095931,0.34387,2618.4,2618.2,0.34389]
[1729643096132,0.34393,2618.0,2617.8,0.34394]
[1729643096435,0.34393,2618.0,2617.9,1.201]
[1729643096832,0.34392,2618.0,2617.9,5.021]
[1729643098431,0.34392,2618.0,2617.9,1.201]
[1729643102636,1.6639,2618.4,2617.9,1.201]
[1729643102834,0.34392,2618.0,2617.9,1.201]
[1729643103139,1.6639,2618.4,2617.9,1.54492]
[1729643103140,0.34387,2618.4,2617.9,1.54492]
[1729643103430,3.2078,2618.5,2617.9,1.201]
[1729643103623,0.34392,2618.1,2617.9,1.54493]
[1729643103828,4.06747,2618.5,2618.3,0.34388]
[1729643103829,3.55167,2618.5,2618.3,0.34388]
[1729643104022,3.55167,2618.5,2618.4,1.2052]
[1729643104023,0.34387,2618.5,2618.4,1.2052]
[1729643109728,3.2078,2618.9,2618.4,5.0244]
[1729643109936,3.2078,2618.9,2618.5,3.2078]
[1729643110128,0.34383,2618.8,2618.6,0.34384]
[1729643110447,0.34384,2618.7,2618.5,3.55165]
[1729643110740,0.34384,2618.7,2618.6,0.34384]
[1729643111335,0.34383,2618.8,2618.6,0.34384]
[1729643112644,0.34383,2618.7,2618.6,0.34384]
[1729643112843,0.34383,2618.7,2618.5,3.55165]
[1729643113438,3.2078,2618.9,2618.5,3.2078]
[1729643113637,0.34384,2618.7,2618.5,3.55165]
[1729643114648,0.34383,2618.8,2618.6,0.34384]
[1729643115141,0.34384,2618.7,2618.5,3.55165]
[1729643115746,0.34384,2618.7,2618.6,0.34384]
[1729643115945,3.2078,2618.9,2618.6,0.34384]
[1729643115946,0.34383,2618.8,2618.6,0.34384]
[1729643116442,0.34383,2618.7,2618.6,0.34384]
[1729643117039,3.55161,2618.9,2618.7,0.34382]
[1729643117342,3.55161,2618.9,2618.8,0.4076]
[1729643118752,3.2078,2618.9,2618.8,0.75142]
[1729643118934,0.34378,2619.1,2618.8,10.4138]
[1729643119137,0.34378,2619.1,2618.9,1.136]
[1729643119539,0.34378,2619.1,2619.0,3.8184]
[1729643119739,2.98,2619.6,2619.1,0.34378]
[1729643119935,0.34379,2619.1,2618.9,1.136]
[1729643120140,0.34379,2619.1,2618.9,0.7922]
[1729643120350,0.34379,2619.1,2619.0,3.8184]
[1729643120539,0.34379,2619.1,2619.0,4.16219]
[1729643120745,0.34379,2619.0,2618.9,0.7922]
[1729643120947,0.34379,2619.0,2618.9,0.3936]
[1729643121543,0.34377,2619.2,2619.0,0.34378]
[1729643121943,0.34378,2619.1,2619.0,0.34378]
[1729643122137,0.34377,2619.2,2619.0,0.34378]
[1729643122744,0.4179,2619.3,2618.8,0.4076]
[1729643122938,0.4179,2619.3,2618.7,3.2078]
[1729643122939,0.3908,2619.1,2618.7,3.2078]
[1729643123147,0.34382,2618.8,2618.7,3.2078]
[1729643123353,0.34383,2618.7,2618.6,0.8028]
[1729643123948,0.34383,2618.7,2618.6,4.6212]
[1729643124543,1.25028,2619.1,2618.5,0.4106]
[1729643124544,0.85951,2619.0,2618.5,0.4106]
[1729643124846,4.23028,2619.1,2618.7,0.34382]
[1729643124847,0.34381,2618.9,2618.7,0.34382]
[1729643125249,0.34383,2618.8,2618.6,0.34384]
[1729643126069,3.5986,2619.1,2618.7,2.98]
[1729643126253,3.55158,2619.1,2619.0,0.34379]
[1729643126749,0.34377,2619.2,2619.0,0.73749]
[1729643126957,0.4179,2619.3,2619.0,0.73749]
[1729643127350,0.34377,2619.2,2619.0,0.73749]
[1729643127853,0.34378,2619.1,2619.0,0.73749]
[1729643128244,3.2078,2619.5,2619.0,0.3937]
[1729643128444,0.34377,2619.2,2619.0,0.73748]
[1729643129749,0.34377,2619.2,2619.1,0.34378]
[1729643130446,0.34377,2619.2,2619.0,0.73748]
[1729643130650,3.2078,2619.5,2619.0,0.73748]
[1729643130948,0.34376,2619.3,2619.2,0.34376]
[1729643132155,3.2078,2619.5,2619.2,2.98]
[1729643132351,3.55153,2619.5,2619.4,0.34374]
[1729643132752,3.55153,2619.5,2619.4,0.74024]
[1729643133057,3.55153,2619.5,2619.4,0.3965]
[1729643134456,0.34373,2619.5,2619.4,0.3965]
[1729643134654,4.94404135,2619.8,2619.4,7.1941]
[1729643134854,0.3875,2620.1,2619.7,2.98]
[1729643135054,0.3875,2620.1,2619.8,1.2224]
[1729643135055,0.34369,2619.9,2619.8,1.2224]
[1729643135361,0.34369,2619.9,2619.8,0.8015]
[1729643136055,0.34371,2619.6,2619.5,0.34373]
[1729643136260,0.34373,2619.5,2619.4,0.4209]
[1729643136556,0.34372,2619.6,2619.4,0.34373]
[1729643136759,0.401,2620.0,2619.3,3.7815]
[1729643136957,4.06699,2619.9,2619.3,3.7815]
[1729643137362,0.34374,2619.4,2619.3,3.7815]
[1729643137756,0.34372,2619.6,2619.3,4.12524]
[1729643138062,0.75463,2619.5,2619.3,4.12524]
[1729643138456,0.75463,2619.5,2619.3,3.7815]
[1729643138660,0.75463,2619.5,2619.3,4.12525]
[1729643140858,0.4109,2619.5,2619.4,0.34374]
[1729643141966,0.4109,2619.5,2619.3,4.12524]
[1729643142866,0.4109,2619.5,2619.3,3.7815]
[1729643143171,0.4109,2619.5,2619.4,0.34374]
[1729643143761,0.75463,2619.5,2619.3,4.12524]
[1729643143963,0.4109,2619.5,2619.3,4.12524]
[1729643144162,0.75463,2619.5,2619.3,4.12524]
[1729643144567,0.4109,2619.5,2619.3,3.7815]
[1729643144767,0.4109,2619.5,2619.4,0.34374]
[1729643145265,0.34373,2619.5,2619.3,4.12525]
[1729643145470,0.34371,2619.7,2619.4,0.34373]
[1729643146268,3.2078,2619.9,2619.3,3.7815]
[1729643146473,0.34369,2619.8,2619.6,0.3437]
[1729643146671,0.34369,2619.8,2619.7,0.3916]
[1729643146974,0.34369,2619.8,2619.7,0.7353]
[1729643147273,0.34368,2619.9,2619.8,0.34369]
[1729643147670,0.34369,2619.8,2619.7,0.7353]
[1729643149275,0.34369,2619.8,2619.7,0.3916]
[1729643149473,0.34369,2619.8,2619.7,0.7353]
[1729643149779,0.34369,2619.8,2619.7,0.3916]
[1729643151676,0.34369,2619.8,2619.3,0.4095]
[1729643151677,0.85914,2620.1,2619.3,3.3895]
[1729643151876,0.34374,2619.5,2619.4,0.4003]
[1729643152474,0.7885,2619.7,2619.2,3.2078]
[1729643152674,0.34375,2619.3,2619.2,3.95186]
[1729643152873,0.34375,2619.3,2619.2,3.6081]
[1729643153073,0.34375,2619.3,2619.2,0.4003]
[1729643159579,0.34375,2619.4,2619.2,0.74406]
[1729643159780,0.34375,2619.3,2619.2,0.4003]
[1729643160779,3.8176,2619.3,2618.9,3.2078]
[1729643160981,0.34379,2619.0,2618.9,3.2078]
[1729643162986,0.8213,2619.2,2618.9,6.1878]
[1729643163194,0.34379,2619.1,2618.9,6.5316]
[1729643163686,0.34379,2619.0,2618.9,6.1878]
[1729643164280,0.4174,2619.2,2618.9,6.1878]
[1729643164584,0.34379,2619.1,2619.0,0.34379]
[1729643165485,3.6062,2619.4,2618.9,6.1878]
[1729643165486,0.34377,2619.2,2618.9,6.1878]
[1729643165782,0.34375,2619.4,2619.3,0.34375]
[1729643173584,0.34375,2619.3,2619.2,1.1941]
[1729643173888,0.34375,2619.3,2619.2,1.53786]
[1729643176391,0.34375,2619.3,2619.2,2.91786]
[1729643176888,0.34375,2619.3,2619.2,2.5741]
[1729643177189,0.34375,2619.3,2619.2,2.91787]
[1729643177489,0.34375,2619.3,2619.2,2.5741]
[1729643177681,3.2078,2619.6,2619.2,2.5741]
[1729643177877,3.55151,2619.6,2619.5,1.38]
[1729643178283,7.36911,2619.6,2619.5,1.38]
[1729643178993,4.16131,2619.6,2619.5,1.38]
[1729643179290,3.55151,2619.6,2619.5,1.38]
[1729643179792,7.36911,2619.6,2619.5,1.38]
[1729643180394,0.34371,2619.6,2619.5,1.38]
[1729643180594,3.55151,2619.6,2619.5,1.38]
[1729643182389,0.3437,2619.8,2619.7,0.34369]
[1729643183092,0.4183,2620.1,2619.7,2.1836]
[1729643183302,0.34365,2620.1,2620.0,1.38]
[1729643183691,0.34365,2620.1,2620.0,3.1774]
[1729643183999,0.34365,2620.1,2620.0,2.14106]
[1729643185196,0.3436,2620.5,2620.4,0.3436]
[1729643185402,0.3436,2620.5,2620.4,1.38]
[1729643185999,0.3436,2620.5,2620.4,1.8027]
[1729643186198,3.55139,2620.6,2620.5,0.3436]
[1729643186700,0.34359,2620.6,2620.5,3.3236]
[1729643187000,0.34358,2620.7,2620.5,3.3236]
[1729643187195,0.34358,2620.6,2620.5,3.3236]
[1729643187396,22.75481423,2628.6,2620.6,3.816]
[1729643187397,3.6048,2621.6,2620.6,3.816]
[1729643187698,0.34346,2621.5,2621.3,2.98]
[1729643187903,0.34347,2621.5,2621.3,3.32349]
[1729643188201,3.6204,2621.6,2621.2,0.3889]
[1729643188202,0.34349,2621.4,2621.2,3.7124]
[1729643188798,0.34349,2621.4,2621.3,0.34349]
[1729643188997,0.34349,2621.4,2621.2,3.7124]
[1729643189195,0.34349,2621.4,2621.3,0.34349]
[1729643189400,0.34349,2621.3,2621.2,3.7124]
[1729643190100,0.34349,2621.3,2621.2,3.3689]
[1729643190296,0.34349,2621.3,2621.2,0.3889]
[1729643190497,0.34352,2621.1,2621.0,0.4227]
[1729643192298,0.34354,2620.9,2620.8,0.4274]
[1729643193101,0.4256,2621.2,2620.8,0.4274]
[1729643193703,0.34354,2620.9,2620.8,0.4274]
[1729643193907,0.34354,2621.0,2620.8,0.77095]
[1729643194507,0.34354,2620.9,2620.8,0.4274]
[1729643199702,0.34356,2620.8,2620.7,0.4107]
[1729643205807,0.34356,2620.8,2620.7,3.3907]
[1729643209114,3.816,2620.8,2620.6,0.427]
[1729643209310,3.2078,2620.9,2620.4,3.6297]
[1729643209617,0.34358,2620.7,2620.5,3.72069]
[1729643210202,3.2078,2620.9,2620.5,3.3771]
[1729643210415,3.55134,2620.9,2620.8,3.32356]
[1729643210713,3.55134,2620.9,2620.8,0.34356]
[1729643212315,3.55134,2620.9,2620.8,1.72356]
[1729643213019,3.55134,2620.9,2620.8,1.38]
[1729643214415,3.55134,2620.9,2620.8,1.72356]
[1729643215016,3.55134,2620.9,2620.8,1.38]
[1729643216212,3.55134,2620.9,2620.8,1.72356]
[1729643216718,3.55134,2620.9,2620.8,1.38]
[1729643221421,3.55134,2620.9,2620.8,1.72356]
[1729643221725,3.55134,2620.9,2620.8,1.38]
[1729643223229,3.55134,2620.9,2620.8,1.72356]
[1729643223532,3.55134,2620.9,2620.8,1.38]
[1729643224720,3.55134,2620.9,2620.8,1.72356]
[1729643228622,3.55134,2620.9,2620.8,1.38]
[1729643237131,0.34354,2620.9,2620.8,1.38]
[1729643238039,0.3954,2621.0,2620.7,1.7948]
[1729643238040,1.7754,2621.0,2620.7,1.7948]
[1729643238240,0.34356,2620.8,2620.7,1.7948]
[1729643242129,0.34356,2620.8,2620.5,3.6049]
[1729643242130,2.2389,2620.8,2620.5,0.3971]
[1729643242332,0.34358,2620.6,2620.5,0.3971]
[1729643242942,0.34358,2620.6,2620.5,1.7771]
[1729643248337,3.2078,2620.8,2620.7,0.34357]
[1729643248537,0.34355,2620.9,2620.8,0.34356]
[1729643248743,0.34355,2620.9,2620.8,2.13146]
[1729643249352,0.34355,2620.9,2620.8,1.7879]
[1729643251147,0.34355,2620.9,2620.8,2.13146]
[1729643251739,0.34355,2620.9,2620.8,1.7879]
[1729643252448,0.34355,2620.9,2620.8,2.13146]
[1729643255240,0.34355,2620.9,2620.8,1.7879]
[1729643257349,0.34355,2620.9,2620.8,2.13146]
[1729643257745,0.34355,2620.9,2620.8,1.7879]
[1729643264551,3.8152,2620.9,2620.5,0.3971]
[1729643264851,0.34358,2620.6,2620.5,0.3971]
[1729643266052,0.34358,2620.6,2620.5,1.7771]
[1729643266549,0.34358,2620.6,2620.5,0.3971]
[1729643266746,0.3436,2620.5,2620.4,1.8019]
[1729643277165,0.3436,2620.5,2620.4,0.4219]
[1729643277357,0.3436,2620.5,2620.4,1.8019]
[1729643280859,0.3436,2620.5,2620.4,2.14551]
[1729643281557,0.3436,2620.5,2620.4,1.8019]
[1729643281757,0.3436,2620.5,2620.4,2.14551]
[1729643282758,0.34359,2620.6,2620.5,0.34359]
[1729643282963,0.34359,2620.6,2620.5,1.72359]
[1729643286061,0.34359,2620.6,2620.5,1.38]
[1729643293367,0.34359,2620.6,2620.5,1.7236]
[1729643293675,0.34359,2620.6,2620.5,1.38]
[1729643294964,0.34359,2620.6,2620.5,1.7656]
[1729643298565,0.34359,2620.6,2620.5,0.3856]
[1729643298771,0.34359,2620.6,2620.4,1.8019]
[1729643298772,1.38,2620.6,2620.3,0.4124]
[1729643298967,0.34361,2620.4,2620.3,1.7924]
[1729643308973,0.34361,2620.4,2620.3,2.13602]
[1729643309175,0.34361,2620.4,2620.3,1.7924]
[1729643309970,0.34361,2620.4,2620.3,2.13602]
[1729643310173,0.34361,2620.4,2620.3,1.7924]
[1729643316184,0.34361,2620.4,2620.3,2.13602]
[1729643318283,3.55137,2620.7,2620.6,0.34358]
[1729643318479,0.34357,2620.7,2620.6,1.38]
[1729643318783,0.34358,2620.6,2620.5,1.38]
[1729643318982,0.3436,2620.5,2620.4,1.8042]
[1729643319789,0.3436,2620.5,2620.4,1.38]
[1729643319978,0.7365,2620.5,2620.4,1.38]
[1729643326891,0.3436,2620.5,2620.4,1.38]
[1729643328587,0.3436,2620.5,2620.4,1.7791]
[1729643329187,0.3436,2620.5,2620.4,2.12271]
[1729643329596,0.3436,2620.5,2620.4,1.7791]
[1729643332700,0.34358,2620.7,2620.6,0.34358]
[1729643332995,0.34358,2620.7,2620.5,1.72358]
[1729643333197,0.34358,2620.7,2620.6,0.4043]
[1729643333401,0.34358,2620.7,2620.6,1.15728]
[1729643337800,0.34358,2620.7,2620.6,0.8137]
[1729643339100,0.34358,2620.7,2620.4,0.3991]
[1729643339101,1.38,2620.8,2620.4,0.3991]
[1729643339300,0.3436,2620.5,2620.4,0.3991]
[1729643339496,0.3436,2620.5,2620.4,1.7791]
[1729643359925,3.6011,2620.7,2620.4,2.12271]
[1729643360228,3.55137,2620.7,2620.6,1.38]
[1729643360520,3.55137,2620.7,2620.6,1.72358]
[1729643361228,3.55137,2620.7,2620.6,1.38]
[1729643362029,3.55137,2620.7,2620.6,1.7777]
[1729643366129,0.3436,2620.5,2620.4,0.3991]
[1729643366330,0.3436,2620.5,2620.4,2.193]
[1729643384744,0.3436,2620.5,2620.4,2.5366]
[1729643384936,0.3436,2620.5,2620.4,2.193]
[1729643385244,0.3436,2620.5,2620.4,2.53661]
[1729643390242,0.3436,2620.5,2620.4,2.193]
[1729643402551,3.2078,2620.6,2620.4,2.193]
[1729643402748,3.55139,2620.6,2620.5,1.7236]
[1729643403151,3.55139,2620.6,2620.5,1.38]
[1729643403352,3.2078,2620.6,2620.4,0.59442645]
[1729643403545,3.55138,2620.6,2620.5,1.7236]
[1729643403944,3.55138,2620.6,2620.5,1.38]
[1729643406060,0.34358,2620.6,2620.5,1.38]
[1729643410148,0.3436,2620.5,2620.4,1.63082645]
[1729643410564,0.3436,2620.5,2620.4,0.25082645]
[1729643410761,0.3436,2620.5,2620.4,1.63082645]
[1729643415866,9.3588,2620.5,2619.7,3.2078]
[1729643416157,0.3437,2619.7,2619.6,1.2169]
[1729643416954,0.8354,2619.8,2619.4,3.2078]
[1729643417151,5.83357904,2619.5,2619.4,3.2078]
[1729643417571,5.83357904,2619.5,2619.4,4.5878]
[1729643418463,5.82581793,2619.5,2619.4,4.5878]
[1729643418760,7.20581793,2619.5,2619.4,4.5878]
[1729643419264,7.20581793,2619.5,2619.4,3.2078]
[1729643419569,0.34382,2618.8,2618.7,3.2078]
[1729643419770,0.34382,2618.8,2618.5,1.38]
[1729643419771,0.34385,2618.6,2618.5,1.38]
[1729643420066,5.47754481,2618.8,2618.5,1.38]
[1729643420260,0.34384,2618.7,2618.5,0.34385]
[1729643420561,0.34382,2618.8,2618.5,0.34386]
[1729643420759,0.34382,2618.8,2618.6,0.34383]
[1729643420961,0.34382,2618.8,2618.7,1.38]
[1729643421162,5.47754481,2618.9,2618.5,0.34386]
[1729643421163,0.34381,2618.9,2618.5,0.34386]
[1729643421457,1.38,2618.7,2618.4,3.6296]
[1729643421658,0.34386,2618.5,2618.4,3.6296]
[1729643422966,0.34386,2618.5,2618.4,5.0096]
[1729643423561,0.34386,2618.5,2618.4,3.6296]
[1729643423764,0.34386,2618.5,2618.4,5.0096]
[1729643427467,0.34386,2618.5,2618.4,1.8018]
[1729643430571,0.34386,2618.5,2618.4,2.14567]
[1729643430961,0.34386,2618.5,2618.4,1.8018]
[1729643432871,0.34386,2618.5,2618.4,2.14567]
[1729643433073,0.34386,2618.5,2618.4,1.8018]
[1729643436572,1.38,2618.5,2618.3,1.38]
[1729643436878,0.34387,2618.5,2618.4,1.38]
[1729643437072,0.34387,2618.5,2618.4,1.7728]
[1729643438075,0.34387,2618.5,2618.4,2.11667]
[1729643438573,0.34387,2618.5,2618.4,1.7728]
[1729643438974,0.34387,2618.5,2618.4,2.11667]
[1729643439175,0.34387,2618.5,2618.4,1.7728]
[1729643439375,0.34387,2618.5,2618.4,2.11667]
[1729643439569,0.34387,2618.5,2618.4,1.7728]
[1729643439772,0.34387,2618.5,2618.4,2.11667]
[1729643440277,0.34385,2618.6,2618.5,0.34385]
[1729643440481,0.4246,2618.7,2618.6,0.34384]
[1729643440675,0.4246,2618.7,2618.6,1.72384]
[1729643441070,0.34383,2618.8,2618.7,0.34383]
[1729643441278,0.34383,2618.8,2618.7,1.72383]
[1729643441878,1.38,2618.8,2618.5,1.38]
[1729643442072,0.34386,2618.5,2618.4,1.38]
[1729643442272,0.34386,2618.5,2618.2,3.2078]
[1729643442273,0.34388,2618.3,2618.2,3.2078]
[1729643442477,0.34388,2618.3,2618.2,4.5878]
[1729643443076,0.34388,2618.4,2618.3,0.34388]
[1729643443276,0.34387,2618.5,2618.4,0.34387]
[1729643443475,0.34387,2618.5,2618.4,1.38]
[1729643444579,0.34387,2618.5,2618.4,1.72387]
[1729643444776,0.34387,2618.5,2618.4,1.38]
[1729643444984,0.34387,2618.5,2618.4,1.72387]
[1729643445584,0.34387,2618.5,2618.4,1.38]
[1729643446378,0.34387,2618.5,2618.4,1.72387]
[1729643448887,0.34387,2618.5,2618.4,1.38]
[1729643449386,0.34387,2618.5,2618.4,1.72387]
[1729643449785,0.34385,2618.6,2618.5,0.34385]
[1729643449991,0.34385,2618.6,2618.5,1.72385]
[1729643450288,0.34385,2618.6,2618.5,1.38]
[1729643450782,0.34386,2618.5,2618.4,1.38]
[1729643450979,0.34386,2618.5,2618.4,1.72387]
[1729643453587,0.34386,2618.5,2618.4,1.38]
[1729643453781,0.34386,2618.5,2618.4,1.72387]
[1729643457287,0.34385,2618.6,2618.5,0.34385]
[1729643457484,0.34385,2618.6,2618.5,1.72385]